bitfinex/quotes_SOLUSD_20211001
["timestamp","ask_amount","ask_price","bid_price","bid_amount"]
[1633083677647,9.82053193,143.48,143.44,27.86710403]
[1633083678546,3.87011711,143.45,143.43,2.93]
[1633083678745,9.82053193,143.48,143.43,2.93]
[1633083678746,9.48677864,143.47,143.43,2.93]
[1633083679149,9.48677864,143.47,143.41,2.93]
[1633083679950,3.73217966,143.42,143.41,2.93]
[1633083680554,3.74863135,143.43,143.41,2.93]
[1633083681151,3.74863135,143.43,143.41,32.93]
[1633083681551,3.74863135,143.43,143.41,2.93]
[1633083684855,3.77632452,143.44,143.41,2.93]
[1633083685455,6.56075216,143.41,143.4,24.5347476]
[1633083685660,3.77632452,143.44,143.4,27.4647476]
[1633083685855,1.88955542,143.41,143.4,87.4647476]
[1633083686057,3.78923153,143.45,143.44,3.77632452]
[1633083686257,3.79769435,143.46,143.44,3.77632452]
[1633083686657,3.80423087,143.47,143.44,3.77632452]
[1633083687957,13.64071759,143.48,143.44,3.77632452]
[1633083688358,3.80962648,143.47,143.44,3.77632452]
[1633083688758,3.80962648,143.47,143.44,33.77632452]
[1633083688957,3.80962648,143.47,143.44,63.77632452]
[1633083689357,13.63597495,143.48,143.44,63.77632452]
[1633083689758,3.81391071,143.47,143.44,63.77632452]
[1633083690357,13.64577153,143.48,143.44,63.77632452]
[1633083691559,3.81883161,143.47,143.44,63.77632452]
[1633083691758,13.64825,143.48,143.44,63.77632452]
[1633083692361,3.84446367,143.47,143.44,63.77632452]
[1633083693661,3.81168466,143.46,143.44,63.77632452]
[1633083693859,3.85313198,143.47,143.44,63.77632452]
[1633083694260,14.56608537,143.53,143.49,3.77632452]
[1633083694461,14.4591059,143.54,143.49,3.77632452]
[1633083694661,86.75958062,143.62,143.5,2.93]
[1633083694860,113.36140007,143.61,143.5,2.93]
[1633083695062,14.23407909,143.6,143.5,2.93]
[1633083695662,72.8703,143.61,143.5,2.93]
[1633083695862,62.07503441,143.67,143.53,424.61772928]
[1633083696063,62.07503441,143.67,143.55,25.91180143]
[1633083696263,14.25744747,143.66,143.55,28.84180143]
[1633083696663,9.2156058,143.57,143.55,28.84180143]
[1633083696861,14.25744747,143.66,143.57,3.77632452]
[1633083697062,14.25744747,143.66,143.57,6.70632452]
[1633083697861,14.25744747,143.66,143.58,25.70105984]
[1633083698264,27.30568475,143.67,143.58,25.70105984]
[1633083698462,2.93,143.69,143.58,25.70105984]
[1633083698664,17.02420443,143.69,143.58,25.70105984]
[1633083699063,17.02420443,143.69,143.61,445.36657133]
[1633083699262,38.80257054,143.69,143.61,471.91167815]
[1633083699462,4.48626172,143.68,143.61,471.91167815]
[1633083699663,18.56430539,143.68,143.61,471.91167815]
[1633083701970,18.56430539,143.68,143.61,445.36657133]
[1633083702168,8.06805704,143.67,143.61,445.36657133]
[1633083702971,8.06805704,143.67,143.61,473.76945076]
[1633083703569,8.06777298,143.68,143.61,473.76945076]
[1633083703770,8.06777298,143.68,143.61,445.36657133]
[1633083704169,22.1410378,143.68,143.61,445.36657133]
[1633083704770,22.1410378,143.68,143.61,470.59501527]
[1633083707675,22.1410378,143.68,143.61,445.36657133]
[1633083707875,2.93,143.67,143.61,445.36657133]
[1633083708077,8.06889075,143.66,143.61,445.36657133]
[1633083708476,22.11093641,143.66,143.61,445.36657133]
[1633083709777,2.93,143.65,143.61,445.36657133]
[1633083709978,8.06955067,143.64,143.61,445.36657133]
[1633083710777,8.06896083,143.65,143.61,445.36657133]
[1633083712780,22.11432052,143.66,143.61,445.36657133]
[1633083713582,57.04432052,143.66,143.61,445.36657133]
[1633083713980,8.06853234,143.65,143.61,445.36657133]
[1633083714382,8.06833904,143.67,143.61,445.36657133]
[1633083714581,21.83026498,143.67,143.61,445.36657133]
[1633083714983,8.06833904,143.67,143.61,445.36657133]
[1633083718684,8.06833904,143.67,143.61,466.80951819]
[1633083720884,8.06833904,143.67,143.61,21.44294686]
[1633083721083,8.06833904,143.67,143.57,3.77632452]
[1633083721484,2.93,143.66,143.57,3.77632452]
[1633083721684,3.48140928,143.62,143.57,3.77632452]
[1633083722088,8.06967833,143.61,143.57,3.77632452]
[1633083724087,6.04804361,143.59,143.57,3.77632452]
[1633083725090,8.06967833,143.61,143.57,3.77632452]
[1633083725291,18.11262262,143.61,143.57,3.77632452]
[1633083726091,35.53762262,143.61,143.57,3.77632452]
[1633083726291,18.11262262,143.61,143.57,3.77632452]
[1633083726489,8.07030202,143.6,143.57,3.77632452]
[1633083726690,8.07059752,143.61,143.57,3.77632452]
[1633083727491,2.93,143.6,143.57,3.77632452]
[1633083727690,8.07174364,143.59,143.57,3.77632452]
[1633083729091,8.07174364,143.59,143.58,0.04216099]
[1633083729291,6.04780818,143.59,143.58,0.04216099]
[1633083730093,8.06961843,143.61,143.58,0.04216099]
[1633083730894,8.06961843,143.61,143.58,30.04216099]
[1633083731097,8.06961843,143.61,143.58,60.04216099]
[1633083731496,8.06961843,143.61,143.58,0.04216099]
[1633083732094,14.116992,143.61,143.58,0.04216099]
[1633083733296,8.06961843,143.61,143.58,0.04216099]
[1633083733496,8.06831435,143.6,143.58,0.04216099]
[1633083733698,8.0684056,143.61,143.58,0.04216099]
[1633083734297,14.11583428,143.61,143.58,0.04216099]
[1633083735097,14.11583428,143.61,143.57,3.77632452]
[1633083742006,6.04803967,143.6,143.57,3.77632452]
[1633083745115,14.11550119,143.61,143.57,3.77632452]
[1633083747312,6.04756187,143.6,143.57,3.77632452]
[1633083751217,6.04756187,143.6,143.59,556.69978238]
[1633083754719,14.11582214,143.61,143.59,556.69978238]
[1633083754921,0.29491524,143.61,143.59,556.69978238]
[1633083755121,34.93,143.68,143.6,50.0]
[1633083755321,115.11924299,143.73,143.61,2.93]
[1633083755922,115.11924299,143.73,143.62,21.70804504]
[1633083756124,82.6242,143.73,143.62,21.70804504]
[1633083756320,109.56034617,143.73,143.62,21.70804504]
[1633083757121,109.56034617,143.73,143.62,51.70804504]
[1633083757521,109.56034617,143.73,143.62,81.70804504]
[1633083757721,82.6242,143.73,143.62,81.70804504]
[1633083758222,82.6242,143.73,143.62,51.70804504]
[1633083758423,82.6242,143.73,143.62,21.70804504]
[1633083758624,82.6242,143.73,143.67,349.7431606]
[1633083758823,2.93,143.73,143.68,26.73057197]
[1633083767133,2.93,143.73,143.67,349.7431606]
[1633083768132,2.93,143.73,143.67,375.4165146]
[1633083768533,33.00965431,143.73,143.67,375.4165146]
[1633083768932,33.00965431,143.73,143.67,349.7431606]
[1633083770735,2.93,143.73,143.67,349.7431606]
[1633083772237,28.42092351,143.72,143.67,349.7431606]
[1633083773238,2.93,143.73,143.67,349.7431606]
[1633083774039,2.93,143.73,143.66,22.18886818]
[1633083774238,29.09670842,143.73,143.66,22.18886818]
[1633083775439,2.93,143.73,143.66,22.18886818]
[1633083776341,2.93,143.73,143.63,0.04216099]
[1633083776542,2.93,143.73,143.62,0.04216099]
[1633083777341,24.32926948,143.72,143.62,24.84199428]
[1633083777543,24.32926948,143.72,143.63,0.04216099]
[1633083780449,2.93,143.71,143.63,0.04216099]
[1633083780848,2.93,143.71,143.61,0.04216099]
[1633083781050,2.93,143.71,143.6,60.0]
[1633083781250,2.93,143.71,143.61,0.04216099]
[1633083781652,2.93,143.71,143.61,29.86227491]
[1633083781851,2.93,143.71,143.62,0.04216099]
[1633083783152,2.93,143.71,143.63,468.60444453]
[1633083783352,2.93,143.71,143.64,23.0520617]
[1633083784356,4.03113557,143.65,143.64,23.0520617]
[1633083784554,2.93,143.71,143.64,23.0520617]
[1633083788858,4.03162452,143.65,143.64,23.0520617]
[1633083791178,2.56037752,143.69,143.63,468.60444453]
[1633083792185,28.45422078,143.69,143.63,468.60444453]
[1633083792782,25.89384326,143.69,143.63,468.60444453]
[1633083794381,28.82384326,143.69,143.63,468.60444453]
[1633083794581,31.34389298,143.69,143.63,468.60444453]
[1633083795786,57.21073278,143.69,143.63,468.60444453]
[1633083796181,28.67150768,143.66,143.63,468.60444453]
[1633083796381,31.60150768,143.66,143.63,468.60444453]
[1633083797583,31.60150768,143.66,143.58,26.17101725]
[1633083797781,4.0319066,143.6,143.56,0.04216099]
[1633083797982,4.0319066,143.6,143.55,0.04216099]
[1633083798384,4.0323486,143.58,143.55,0.04216099]
[1633083798585,4.0323486,143.58,143.53,0.04216099]
[1633083798782,26.13156568,143.55,143.5,2.93]
[1633083798981,26.13156568,143.55,143.49,73.55566099]
[1633083798982,26.13156568,143.55,143.49,0.04216099]
[1633083800186,4.0324022,143.56,143.49,0.04216099]
[1633083800383,4.03104612,143.58,143.49,0.04216099]
[1633083800585,4.03136741,143.57,143.49,0.04216099]
[1633083800783,4.03087048,143.58,143.49,0.04216099]
[1633083801183,25.72012802,143.57,143.49,26.59400684]
[1633083801383,34.93,143.63,143.57,25.72012802]
[1633083801586,527.11550516,143.69,143.65,25.45683954]
[1633083801785,75.0491,143.69,143.65,25.45683954]
[1633083801983,32.93,143.72,143.65,25.45683954]
[1633083802387,2.93,143.72,143.65,25.45683954]
[1633083806190,2.0141027,143.67,143.65,25.45683954]
[1633083809692,2.01426783,143.66,143.65,25.45683954]
[1633083811395,2.01415102,143.67,143.65,25.45683954]
[1633083811595,2.0140848,143.68,143.65,25.45683954]
[1633083812196,2.0140848,143.68,143.65,41.8062655]
[1633083814999,2.0142258,143.69,143.65,41.8062655]
[1633083816000,2.01426018,143.68,143.65,41.8062655]
[1633083817001,2.01426018,143.68,143.65,25.45683954]
[1633083821006,2.01443391,143.67,143.65,25.45683954]
[1633083821807,2.01439638,143.68,143.65,25.45683954]
[1633083822005,2.01442942,143.67,143.65,25.45683954]
[1633083823312,2.0144208,143.68,143.65,25.45683954]
[1633083823508,2.01442119,143.67,143.65,25.45683954]
[1633083823706,2.01441707,143.68,143.65,25.45683954]
[1633083824313,2.01446258,143.67,143.65,25.45683954]
[1633083825008,2.01446258,143.67,143.65,40.29710067]
[1633083826410,2.01440728,143.68,143.65,40.29710067]
[1633083827009,2.01440728,143.68,143.65,25.45683954]
[1633083828812,2.01465146,143.67,143.65,25.45683954]
[1633083829617,4.5143737,143.67,143.65,25.45683954]
[1633083829813,2.49972224,143.67,143.65,25.45683954]
[1633083830212,2.93,143.66,143.65,25.45683954]
[1633083836023,25.45683954,143.65,143.57,492.82049732]
[1633083836223,2.00856455,143.61,143.57,492.82049732]
[1633083836420,2.00005406,143.6,143.57,492.82049732]
[1633083839025,26.30813986,143.6,143.57,492.82049732]
[1633083839223,2.00005406,143.6,143.57,492.82049732]
[1633083839422,1.99072262,143.61,143.57,492.82049732]
[1633083853534,2.00093583,143.62,143.57,492.82049732]
[1633083854734,2.00699108,143.61,143.57,492.82049732]
[1633083855335,2.01033602,143.62,143.57,492.82049732]
[1633083856537,2.01064543,143.61,143.57,492.82049732]
[1633083857536,2.003573,143.6,143.57,492.82049732]
[1633083858138,2.00017999,143.59,143.57,492.82049732]
[1633083859037,2.01233214,143.6,143.57,492.82049732]
[1633083859437,2.00716246,143.59,143.57,492.82049732]
[1633083860639,2.00310171,143.58,143.57,492.82049732]
[1633083862945,2.00310171,143.58,143.57,503.92529284]
[1633083863346,2.01165329,143.59,143.57,503.92529284]
[1633083863946,2.01165329,143.59,143.57,492.82049732]
[1633083864847,2.00534472,143.58,143.57,492.82049732]
[1633083868450,2.00989595,143.59,143.57,492.82049732]
[1633083872555,2.00867854,143.58,143.57,492.82049732]
[1633083874759,1.9932609,143.59,143.57,492.82049732]
[1633083876567,1.95598331,143.58,143.57,492.82049732]
[1633083876762,4.96596408,143.62,143.57,492.82049732]
[1633083877163,26.91447742,143.61,143.57,492.82049732]
[1633083877361,4.81737147,143.6,143.57,492.82049732]
[1633083878161,26.91447742,143.61,143.57,492.82049732]
[1633083878362,1.95265124,143.58,143.57,492.82049732]
[1633083878761,1.96053278,143.59,143.57,492.82049732]
[1633083887978,1.9548605,143.58,143.57,492.82049732]
[1633083889182,1.96162827,143.59,143.57,492.82049732]
[1633083889784,1.9556976,143.58,143.57,492.82049732]
[1633083890182,1.95797995,143.59,143.57,492.82049732]
[1633083890984,1.95507807,143.58,143.57,492.82049732]
[1633083891588,1.95770969,143.59,143.57,492.82049732]
[1633083892805,1.96268391,143.58,143.57,492.82049732]
[1633083893209,1.96518473,143.59,143.58,16.77101501]
[1633083894005,1.97122691,143.6,143.58,16.77101501]
[1633083894207,48.74945546,143.65,143.58,16.77101501]
[1633083894208,25.45683954,143.65,143.6,36.0]
[1633083894406,25.45683954,143.65,143.61,12.5267975]
[1633083901112,25.45683954,143.65,143.58,28.66796881]
[1633083911518,25.45683954,143.65,143.59,2.93]
[1633083912621,2.93,143.71,143.6,77.0]
[1633083912820,2.93,143.73,143.61,2.93]
[1633083913024,2.93,143.73,143.61,78.2895]
[1633083913626,2.93,143.73,143.62,26.08668325]
[1633083913824,2.93,143.73,143.62,29.01668325]
[1633083920428,2.93,143.73,143.69,22.78875176]
[1633083923334,2.93,143.73,143.68,381.17684144]
[1633083924531,2.93,143.75,143.68,381.17684144]
[1633083932945,2.93,143.75,143.67,25.66747679]
[1633083939046,2.93,143.75,143.65,0.04216099]
[1633083939649,2.93,143.75,143.69,375.14404721]
[1633083940748,8.97753407,143.75,143.69,375.14404721]
[1633083942453,16.93899217,143.75,143.69,375.14404721]
[1633083942652,8.97753407,143.75,143.69,375.14404721]
[1633083942855,2.93,143.75,143.69,375.14404721]
[1633083944952,8.97756098,143.75,143.69,375.14404721]
[1633083949255,8.97756098,143.75,143.66,23.00645931]
[1633083949656,8.97756098,143.75,143.65,0.04216099]
[1633083950058,16.90872487,143.75,143.65,0.04216099]
[1633083950256,6.04778754,143.74,143.65,0.04216099]
[1633083950659,26.25606659,143.73,143.65,0.04216099]
[1633083954963,26.25606659,143.73,143.65,537.03793717]
[1633083960869,29.18606659,143.73,143.65,537.03793717]
[1633083964780,29.18606659,143.73,143.65,536.99577618]
[1633083965383,6.04775314,143.74,143.65,558.77702684]
[1633083965582,2.93,143.75,143.65,558.77702684]
[1633083966383,29.14204479,143.75,143.65,558.77702684]
[1633083968386,29.14204479,143.75,143.65,536.99577618]
[1633083968986,2.93,143.75,143.65,536.99577618]
[1633083969188,2.93,143.77,143.66,2.93]
[1633083969993,2.93,143.77,143.67,28.79914467]
[1633083972292,22.50337216,143.76,143.67,28.79914467]
[1633083973114,2.93,143.77,143.67,28.79914467]
[1633083975713,2.93,143.79,143.68,2.93]
[1633083979118,28.94676354,143.78,143.68,2.93]
[1633083980815,17.404,143.77,143.68,2.93]
[1633083981015,20.334,143.77,143.66,2.93]
[1633083981819,20.334,143.77,143.67,23.8508399]
[1633083985620,24.36273459,143.77,143.67,23.8508399]
[1633083986422,20.334,143.77,143.67,23.8508399]
[1633083990222,24.36319094,143.77,143.67,23.8508399]
[1633083990623,20.334,143.77,143.67,23.8508399]
[1633083991623,24.36323351,143.77,143.67,23.8508399]
[1633083993431,20.334,143.77,143.67,23.8508399]
[1633083994630,24.36390686,143.77,143.67,23.8508399]
[1633083996228,20.334,143.77,143.67,23.8508399]
[1633083997032,24.36403572,143.77,143.67,23.8508399]
[1633083998629,7.5489168,143.76,143.67,23.8508399]
[1633083998831,23.65498052,143.75,143.65,539.96793717]
[1633083999833,23.65498052,143.75,143.66,26.7474851]
[1633084001137,23.65498052,143.75,143.65,539.96793717]
[1633084002236,27.685768,143.75,143.65,539.96793717]
[1633084002436,23.08163015,143.76,143.66,68.0]
[1633084002639,23.08163015,143.76,143.67,23.7758835]
[1633084004941,3.519768,143.77,143.67,23.7758835]
[1633084005142,2.93,143.77,143.67,23.7758835]
[1633084005346,2.93,143.79,143.68,2.93]
[1633084005742,2.93,143.81,143.68,2.93]
[1633084005941,60.0,143.83,143.68,72.82]
[1633084006141,60.0,143.83,143.7,23.26095941]
[1633084006343,60.0,143.83,143.71,2.93]
[1633084006942,79.1952,143.88,143.72,0.04216099]
[1633084007142,2.41538998,143.87,143.73,2.93]
[1633084007342,0.09005594,143.89,143.76,0.04216099]
[1633084007542,0.09005594,143.89,143.77,2.93]
[1633084007944,0.09005594,143.89,143.79,0.04216099]
[1633084008141,0.09005594,143.89,143.81,28.57934608]
[1633084008344,0.09005594,143.89,143.82,2.97216099]
[1633084008544,0.09005594,143.89,143.83,0.04216099]
[1633084008745,0.09005594,143.89,143.84,2.93]
[1633084009544,0.09005594,143.89,143.85,27.85543566]
[1633084009744,0.09005594,143.89,143.86,2.93]
[1633084015952,5.594e-05,143.89,143.87,0.04216099]
[1633084016154,5.594e-05,143.89,143.88,91.93]
[1633084016354,5.594e-05,143.89,143.88,2.93]
[1633084016753,5.594e-05,143.89,143.88,2.97216099]
[1633084016951,5.594e-05,143.89,143.88,2.93]
[1633084031469,5.594e-05,143.89,143.87,0.04216099]
[1633084031668,5.594e-05,143.89,143.86,0.04216099]
[1633084032068,5.594e-05,143.89,143.85,2.93]
[1633084032470,5.594e-05,143.89,143.84,513.02663001]
[1633084035570,2.01241295,143.89,143.84,513.02663001]
[1633084036373,29.2139172,143.88,143.81,2.93]
[1633084036571,31.22655596,143.88,143.81,2.93]
[1633084036972,31.22655596,143.88,143.8,0.04216099]
[1633084037972,2.01284008,143.87,143.8,0.04216099]
[1633084039877,49.06719014,143.88,143.8,0.04216099]
[1633084042077,78.3682,143.87,143.8,0.04216099]
[1633084043379,47.05468278,143.88,143.8,0.04216099]
[1633084043579,47.05468278,143.88,143.81,2.93]
[1633084044780,49.06685128,143.88,143.8,0.04216099]
[1633084044978,2.01218034,143.87,143.79,489.89099053]
[1633084046180,7.58268181,143.87,143.79,489.89099053]
[1633084047181,5.57050147,143.87,143.79,489.89099053]
[1633084047879,5.57050147,143.87,143.8,2.93]
[1633084048083,5.57050147,143.87,143.8,2.97216099]
[1633084048479,41.48418131,143.88,143.8,2.97216099]
[1633084049480,41.48418131,143.88,143.8,2.93]
[1633084049681,43.49640172,143.88,143.8,2.93]
[1633084051080,41.48418131,143.88,143.8,2.93]
[1633084051679,43.49633783,143.88,143.8,2.93]
[1633084053182,43.49633783,143.88,143.81,22.87538007]
[1633084053382,5.594e-05,143.89,143.81,25.84754106]
[1633084053582,5.594e-05,143.89,143.81,2.97216099]
[1633084055684,5.594e-05,143.89,143.81,27.71797238]
[1633084055885,5.594e-05,143.89,143.82,0.04216099]
[1633084056084,5.594e-05,143.89,143.83,2.93]
[1633084056284,5.594e-05,143.89,143.84,0.04216099]
[1633084056484,5.594e-05,143.89,143.85,2.93]
[1633084056685,5.594e-05,143.89,143.86,0.04216099]
[1633084056884,5.594e-05,143.89,143.87,2.93]
[1633084057085,5.594e-05,143.89,143.88,69.04216099]
[1633084057292,5.594e-05,143.89,143.88,71.97216099]
[1633084058489,5.594e-05,143.89,143.88,2.97216099]
[1633084059089,5.594e-05,143.89,143.88,33.97216099]
[1633084060093,5.594e-05,143.89,143.88,2.97216099]
[1633084061092,5.594e-05,143.89,143.88,50.97216099]
[1633084061691,2.0098478,144.02,143.88,79.36588687]
[1633084061891,74.2419,144.11,143.88,79.36588687]
[1633084061892,23.45592684,144.1,143.89,121.37252432]
[1633084062090,2.93,144.09,143.92,0.04216099]
[1633084062294,2.93,144.09,143.93,2.93]
[1633084062494,2.93,144.09,143.94,24.20412762]
[1633084062692,2.93,144.09,143.95,2.97216099]
[1633084062892,2.93,144.09,143.96,0.04216099]
[1633084063095,2.93,144.09,143.97,2.93]
[1633084063292,2.93,144.09,143.98,23.0266099]
[1633084063491,2.93,144.12,143.99,2.93]
[1633084063691,116.5,144.08,143.99,2.93]
[1633084063893,100.46668734,144.08,143.99,2.93]
[1633084064094,7.90434928,144.08,144.01,98.0]
[1633084064293,0.07,144.17,144.03,98.0]
[1633084064492,17.3669,144.21,144.18,2.93]
[1633084064693,231.87,144.18,144.1,2.93]
[1633084065097,176.98656856,144.18,144.1,2.93]
[1633084065297,2.44,144.2,144.1,2.93]
[1633084065695,2.44,144.2,144.11,0.04216099]
[1633084065895,2.44,144.2,144.12,2.93]
[1633084066294,75.5181,144.33,144.14,73.32]
[1633084066499,75.5181,144.33,144.17,73.32]
[1633084066696,2.93,144.37,144.18,2.93]
[1633084067097,116.5,144.33,144.18,76.25]
[1633084067296,116.5,144.33,144.18,2.93]
[1633084067496,116.5,144.33,144.23,73.32]
[1633084067895,116.5,144.33,144.24,2.93]
[1633084068094,48.26164128,144.38,144.25,73.32]
[1633084068296,21.25047699,144.38,144.28,73.32]
[1633084068595,1.0,144.5,144.18,23.13329341]
[1633084068596,158.55,144.28,144.18,23.13329341]
[1633084068796,30.0,144.31,144.28,8.00347745]
[1633084068995,1.0,144.5,144.29,2.97216099]
[1633084069200,27.27173575,144.48,144.29,2.97216099]
[1633084069395,27.27173575,144.48,144.29,2.93]
[1633084069596,25.57831036,144.49,144.37,0.04216099]
[1633084069800,25.57831036,144.49,144.38,2.93]
[1633084069995,0.00831036,144.49,144.39,0.04216099]
[1633084070195,0.00831036,144.49,144.4,2.93]
[1633084070399,1.0,144.5,144.4,2.93]
[1633084070995,1.0,144.5,144.43,70.39]
[1633084071196,19.90069453,144.53,144.44,2.93]
[1633084071396,50.0,144.55,144.45,73.36216099]
[1633084071599,50.0,144.55,144.46,2.97216099]
[1633084071797,50.0,144.55,144.48,73.32]
[1633084071996,50.0,144.55,144.49,2.93]
[1633084072200,50.0,144.55,144.5,0.04216099]
[1633084072398,8.00347745,144.55,144.53,0.04216099]
[1633084072596,8.00347745,144.55,144.5,73.32]
[1633084072597,0.00347745,144.55,144.54,2.93]
[1633084072998,0.00347745,144.55,144.54,2.97216099]
[1633084073599,9.37e-06,144.59,144.54,2.97216099]
[1633084073796,3.02005594,144.73,144.55,0.04216099]
[1633084073995,2.62837774,144.73,144.56,2.93]
[1633084074198,2.62837774,144.73,144.55,0.04216099]
[1633084074199,27.63088696,144.63,144.54,64.82292099]
[1633084074397,16.4262406,144.71,144.55,2.93]
[1633084074601,98.0,144.62,144.55,2.93]
[1633084074797,30.12359873,144.69,144.54,59.40480099]
[1633084075000,2.57684719,144.65,144.55,2.93]
[1633084075199,26.83644252,144.64,144.55,2.93]
[1633084075601,5.42271177,144.69,144.55,2.93]
[1633084075999,32.57237144,144.69,144.55,2.93]
[1633084076200,46.40128428,144.69,144.55,2.93]
[1633084076401,16.32162461,144.69,144.55,2.93]
[1633084076601,23.3659316,144.7,144.55,2.93]
[1633084076999,23.3659316,144.7,144.56,30.17728201]
[1633084077199,7.85212,144.69,144.57,2.95088]
[1633084077401,23.2580516,144.7,144.57,2.93]
[1633084077800,23.2580516,144.7,144.58,0.02088]
[1633084077999,23.2580516,144.7,144.59,2.93]
[1633084078200,23.2580516,144.7,144.59,2.95088]
[1633084078798,0.09005594,144.73,144.59,2.95088]
[1633084079399,1.7784,144.72,144.59,2.95088]
[1633084080200,1.7784,144.72,144.59,76.27088]
[1633084081002,4.90206498,144.71,144.59,76.27088]
[1633084081400,28.99267378,144.7,144.59,2.95088]
[1633084081604,28.99267378,144.7,144.56,2.93]
[1633084081802,31.53511259,144.7,144.56,2.93]
[1633084082001,39.33090543,144.7,144.56,2.93]
[1633084082201,58.81963557,144.7,144.56,32.93]
[1633084082403,2.52340725,144.67,144.56,32.93]
[1633084082604,21.51917523,144.66,144.56,32.93]
[1633084082803,2.93,144.56,144.53,32.93]
[1633084083002,2.93,144.56,144.45,73.34088]
[1633084083003,98.0,144.55,144.45,73.34088]
[1633084083203,22.14788678,144.54,144.46,2.93]
[1633084083806,2.48860706,144.52,144.42,2.93]
[1633084084003,22.39885436,144.51,144.42,2.93]
[1633084084411,2.93,144.5,144.38,2.95088]
[1633084084610,2.5970584,144.48,144.38,2.95088]
[1633084084808,23.34021922,144.47,144.38,2.95088]
[1633084085007,2.93,144.46,144.33,2.93]
[1633084085608,23.34021922,144.47,144.31,0.02088]
[1633084085808,2.35,144.46,144.32,2.35]
[1633084086013,2.35,144.45,144.33,28.75961678]
[1633084086208,2.35,144.44,144.33,65.73151734]
[1633084086610,4.1284,144.44,144.34,36.94452056]
[1633084086935,1.7784,144.44,144.36,0.02088]
[1633084087109,2.35,144.51,144.37,2.35]
[1633084087309,2.35,144.51,144.37,32.09808892]
[1633084087514,2.35,144.51,144.38,0.02088]
[1633084087709,2.35,144.51,144.39,0.02088]
[1633084088116,2.35,144.51,144.38,29.76896892]
[1633084088312,28.25606117,144.5,144.38,0.02088]
[1633084088522,28.25606117,144.5,144.39,2.35]
[1633084089312,2.35,144.49,144.38,0.02088]
[1633084089512,2.35,144.49,144.36,0.02088]
[1633084089714,2.35,144.49,144.4,34.05779834]
[1633084089933,2.35,144.53,144.41,7.82086]
[1633084090114,2.35,144.53,144.41,40.33662009]
[1633084090313,25.96980671,144.52,144.42,32.16629834]
[1633084090512,2.35,144.51,144.42,32.16629834]
[1633084090714,2.35,144.51,144.43,0.02088]
[1633084090915,2.35,144.51,144.36,30.78711848]
[1633084091115,2.35,144.51,144.36,0.02088]
[1633084091320,2.35,144.51,144.35,0.02088]
[1633084091514,2.35,144.51,144.33,0.02088]
[1633084091918,2.53554039,144.5,144.32,0.02088]
[1633084092115,2.37088,144.49,144.28,2.35]
[1633084092318,2.35,144.49,144.28,2.35]
[1633084092516,2.35,144.49,144.29,40.01454834]
[1633084092716,2.35,144.49,144.3,2.37088]
[1633084092916,2.35,144.49,144.31,5.02041]
[1633084093119,2.35,144.49,144.32,2.37088]
[1633084093318,2.93,144.56,144.32,2.35]
[1633084093520,2.35,144.55,144.38,0.02088]
[1633084093719,29.01931729,144.54,144.39,2.35]
[1633084093916,29.01931729,144.54,144.4,1.61175]
[1633084094116,29.01931729,144.54,144.41,2.37088]
[1633084094318,29.01931729,144.54,144.42,0.02088]
[1633084094517,29.01931729,144.54,144.43,2.35]
[1633084095118,2.93,144.56,144.43,2.35]
[1633084095319,2.35,144.55,144.43,2.35]
[1633084095519,0.02088,144.54,144.43,2.35]
[1633084095721,2.35,144.53,144.39,2.35]
[1633084096123,2.93,144.56,144.39,31.05091694]
[1633084096124,5.28,144.56,144.39,31.05091694]
[1633084096324,0.02088,144.55,144.4,47.14651956]
[1633084096520,2.93,144.56,144.41,2.37088]
[1633084096720,2.93,144.56,144.42,0.38749]
[1633084096922,2.93,144.56,144.43,2.35]
[1633084097126,2.93,144.56,144.44,0.45126]
[1633084097320,2.93,144.56,144.45,2.35]
[1633084097522,2.93,144.56,144.46,0.51332]
[1633084097720,2.93,144.56,144.47,2.35]
[1633084097923,1.0926,144.56,144.48,104.81708]
[1633084098123,1.0926,144.56,144.48,10.16708]
[1633084098323,1.0926,144.56,144.48,24.68952344]
[1633084098946,1.0926,144.56,144.48,7.81708]
[1633084099122,3.4426,144.56,144.48,7.81708]
[1633084099524,1.0926,144.56,144.48,7.81708]
[1633084099724,1.0926,144.56,144.49,30.0]